[Event "*** Titled Tuesday Blitz"]
[Site "Chess.com"]
[Date "2019.05.07"]
[Round "7"]
[White "norwaytoadog"]
[Black "Perecke"]
[Result "1-0"]
[WhiteElo "2249"]
[BlackElo "2103"]
[TimeControl "180+2"]
[EndTime "14:41:22 PDT"]
[Termination "norwaytoadog won by resignation"]

1. e4 {[%clk 0:03:01.9]} 1... e5 {[%clk 0:02:59.9]} 2. Nf3 {[%clk 0:03:02.9]}
2... Nc6 {[%clk 0:02:43.9]} 3. Bb5 {[%clk 0:03:03.7]} 3... a6 {[%clk 0:02:44.5]}
4. Ba4 {[%clk 0:03:04.3]} 4... Nf6 {[%clk 0:02:44.9]} 5. d3 {[%clk 0:03:05.6]}
5... Be7 {[%clk 0:02:45.3]} 6. c3 {[%clk 0:03:06.3]} 6... b5 {[%clk 0:02:45.7]}
7. Bc2 {[%clk 0:03:06.2]} 7... d5 {[%clk 0:02:46.7]} 8. Qe2 {[%clk 0:03:07.3]}
8... O-O {[%clk 0:02:46]} 9. Nbd2 {[%clk 0:03:07.8]} 9... Re8 {[%clk 0:02:46]}
10. h3 {[%clk 0:03:06.8]} 10... Bf8 {[%clk 0:02:46.9]} 11. Nf1 {[%clk
0:03:07.2]} 11... g6 {[%clk 0:02:47.4]} 12. g4 {[%clk 0:03:06.4]} 12... Bg7
{[%clk 0:02:47.3]} 13. Ng3 {[%clk 0:03:07.3]} 13... dxe4 {[%clk 0:02:42.2]} 14.
dxe4 {[%clk 0:03:08]} 14... b4 {[%clk 0:02:42.8]} 15. Be3 {[%clk 0:02:50.5]}
15... bxc3 {[%clk 0:02:41]} 16. bxc3 {[%clk 0:02:50.7]} 16... Qe7 {[%clk
0:02:41]} 17. O-O {[%clk 0:02:44.7]} 17... Bd7 {[%clk 0:01:59.2]} 18. Nh2 {[%clk
0:02:43]} 18... Kh8 {[%clk 0:01:50.6]} 19. g5 {[%clk 0:02:43.2]} 19... Ng8
{[%clk 0:01:51.2]} 20. Ng4 {[%clk 0:02:43.2]} 20... f5 {[%clk 0:01:38.5]} 21.
exf5 {[%clk 0:02:35]} 21... gxf5 {[%clk 0:01:38.5]} 22. Nxf5 {[%clk 0:02:27.1]}
22... Bxf5 {[%clk 0:01:35.6]} 23. Bxf5 {[%clk 0:02:27.9]} 23... e4 {[%clk
0:01:35.7]} 24. Qc4 {[%clk 0:02:15.5]} 24... Ne5 {[%clk 0:01:17.8]} 25. Qxe4
{[%clk 0:02:11.9]} 25... Nxg4 {[%clk 0:01:11.6]} 26. Qxg4 {[%clk 0:01:46.3]}
26... Bxc3 {[%clk 0:01:07]} 27. Rad1 {[%clk 0:01:43.3]} 27... Nh6 {[%clk
0:00:29.8]} 28. Bd4+ {[%clk 0:01:32.2]} 28... Bxd4 {[%clk 0:00:29.5]} 29. Qxd4+
{[%clk 0:01:33.1]} 29... Qe5 {[%clk 0:00:26.7]} 30. Qxe5+ {[%clk 0:01:25.7]}
30... Rxe5 {[%clk 0:00:27]} 31. Bc2 {[%clk 0:01:00.1]} 31... Rxg5+ {[%clk
0:00:27.3]} 32. Kh2 {[%clk 0:01:01]} 32... Rh5 {[%clk 0:00:21.1]} 33. Rd7 {[%clk
0:00:57.3]} 33... Ng4+ {[%clk 0:00:15.3]} 34. Kg3 {[%clk 0:00:54.9]} 34... Nf6
{[%clk 0:00:16.5]} 35. Rxc7 {[%clk 0:00:52.4]} 35... Rg8+ {[%clk 0:00:17.4]} 36.
Kf3 {[%clk 0:00:44.6]} 36... Rxh3+ {[%clk 0:00:17.6]} 37. Ke2 {[%clk 0:00:45.7]}
37... Re8+ {[%clk 0:00:16.1]} 38. Kd2 {[%clk 0:00:42.6]} 38... Ra3 {[%clk
0:00:13.6]} 39. Bb3 {[%clk 0:00:40.8]} 39... Ne4+ {[%clk 0:00:12.7]} 40. Kc2
{[%clk 0:00:40]} 40... Ra5 {[%clk 0:00:10.2]} 41. Rh1 {[%clk 0:00:35.8]} 41...
Nf6 {[%clk 0:00:05]} 42. Rf7 {[%clk 0:00:32.5]} 42... Rc8+ {[%clk 0:00:03.6]}
43. Kb2 {[%clk 0:00:33.4]} 43... Rc6 {[%clk 0:00:04.3]} 44. Rd1 {[%clk
0:00:31.1]} 44... Kg8 {[%clk 0:00:04.7]} 45. Rxf6+ {[%clk 0:00:31.2]} 45... Kg7
{[%clk 0:00:05.4]} 46. Rxc6 {[%clk 0:00:31.9]} 1-0

[Event "*** Titled Tuesday Blitz"]
[Site "Chess.com"]
[Date "2019.05.07"]
[Round "7"]
[White "stepanosinovsky"]
[Black "LiamVrolijk"]
[Result "1/2-1/2"]
[WhiteElo "2410"]
[BlackElo "2518"]
[TimeControl "180+2"]
[EndTime "14:41:29 PDT"]
[Termination "Game drawn by repetition"]

1. e4 {[%clk 0:03:01.9]} 1... e5 {[%clk 0:03:00.1]} 2. Nf3 {[%clk 0:03:02.9]}
2... Nc6 {[%clk 0:03:01.4]} 3. Bb5 {[%clk 0:03:03.8]} 3... Nf6 {[%clk
0:03:02.3]} 4. d3 {[%clk 0:03:03.8]} 4... Bc5 {[%clk 0:03:03.5]} 5. O-O {[%clk
0:03:04.1]} 5... d6 {[%clk 0:03:03.7]} 6. Nbd2 {[%clk 0:03:03.8]} 6... O-O
{[%clk 0:03:04.5]} 7. h3 {[%clk 0:02:59.4]} 7... Ne7 {[%clk 0:03:05.1]} 8. c3
{[%clk 0:02:51.4]} 8... Ng6 {[%clk 0:03:06]} 9. d4 {[%clk 0:02:51.4]} 9... Bb6
{[%clk 0:03:06.9]} 10. Bd3 {[%clk 0:02:45.1]} 10... Nh5 {[%clk 0:02:58.8]} 11.
Nc4 {[%clk 0:02:45]} 11... Nhf4 {[%clk 0:02:59]} 12. Bc2 {[%clk 0:02:35]} 12...
Qf6 {[%clk 0:02:36]} 13. a4 {[%clk 0:02:05.7]} 13... Nxh3+ {[%clk 0:02:12.3]}
14. gxh3 {[%clk 0:02:03.9]} 14... Bxh3 {[%clk 0:02:13]} 15. Nxb6 {[%clk
0:01:33.8]} 15... axb6 {[%clk 0:01:49.7]} 16. dxe5 {[%clk 0:00:33.4]} 16... dxe5
{[%clk 0:01:50.5]} 17. Nh2 {[%clk 0:00:33.7]} 17... Rad8 {[%clk 0:00:54.3]} 18.
Qh5 {[%clk 0:00:25.3]} 18... Bxf1 {[%clk 0:00:55.4]} 19. Kxf1 {[%clk 0:00:21.2]}
19... Nf4 {[%clk 0:00:54.7]} 20. Qf3 {[%clk 0:00:17.8]} 20... Qh4 {[%clk
0:00:38.7]} 21. Bxf4 {[%clk 0:00:18.2]} 21... exf4 {[%clk 0:00:40.3]} 22. Kg2
{[%clk 0:00:15.5]} 22... Rd6 {[%clk 0:00:41.8]} 23. Rh1 {[%clk 0:00:15.5]} 23...
Rg6+ {[%clk 0:00:40.6]} 24. Kf1 {[%clk 0:00:16.2]} 24... Qg5 {[%clk 0:00:38.5]}
25. e5 {[%clk 0:00:16.4]} 25... Rh6 {[%clk 0:00:39.3]} 26. Ng4 {[%clk
0:00:16.6]} 26... Rxh1+ {[%clk 0:00:40.2]} 27. Qxh1 {[%clk 0:00:18.5]} 27... h5
{[%clk 0:00:34.1]} 28. Qe4 {[%clk 0:00:19.3]} 28... g6 {[%clk 0:00:23.9]} 29.
Nf6+ {[%clk 0:00:19.9]} 29... Kg7 {[%clk 0:00:25.6]} 30. Nd5 {[%clk 0:00:16]}
30... Rd8 {[%clk 0:00:26]} 31. Bb3 {[%clk 0:00:14.2]} 31... f3 {[%clk
0:00:25.7]} 32. Qxf3 {[%clk 0:00:14.7]} 32... Qxe5 {[%clk 0:00:26.2]} 33. Ne3
{[%clk 0:00:11.3]} 33... Qf6 {[%clk 0:00:25.9]} 34. Qxb7 {[%clk 0:00:11.3]}
34... h4 {[%clk 0:00:27.8]} 35. Qxc7 {[%clk 0:00:11.6]} 35... Rd2 {[%clk
0:00:29.1]} 36. Qh2 {[%clk 0:00:11.8]} 36... h3 {[%clk 0:00:22.9]} 37. Ng4
{[%clk 0:00:12.4]} 37... Qf3 {[%clk 0:00:21.5]} 38. Qe5+ {[%clk 0:00:11.8]}
38... Kf8 {[%clk 0:00:23.2]} 39. Qh8+ {[%clk 0:00:11.8]} 39... Ke7 {[%clk
0:00:24.4]} 40. Qe5+ {[%clk 0:00:12.3]} 40... Kf8 {[%clk 0:00:26]} 41. Qh8+
{[%clk 0:00:10.5]} 41... Ke7 {[%clk 0:00:27.7]} 42. Qe5+ {[%clk 0:00:11.2]}
42... Kd8 {[%clk 0:00:26.4]} 43. Qb8+ {[%clk 0:00:11.2]} 43... Ke7 {[%clk
0:00:28]} 44. Qe5+ {[%clk 0:00:07.7]} 1/2-1/2

[Event "*** Titled Tuesday Blitz"]
[Site "Chess.com"]
[Date "2019.05.07"]
[Round "7"]
[White "Firouzja2003"]
[Black "spicycaterpillar"]
[Result "1-0"]
[WhiteElo "3068"]
[BlackElo "2826"]
[TimeControl "180+2"]
[EndTime "14:41:32 PDT"]
[Termination "Firouzja2003 won on time"]

1. e4 {[%clk 0:03:01.9]} 1... e5 {[%clk 0:02:58.8]} 2. Nf3 {[%clk 0:03:02.6]}
2... Nc6 {[%clk 0:02:59]} 3. Bb5 {[%clk 0:03:03.6]} 3... a6 {[%clk 0:02:59.5]}
4. Ba4 {[%clk 0:03:04.2]} 4... Nf6 {[%clk 0:03:00.1]} 5. O-O {[%clk 0:03:05.7]}
5... b5 {[%clk 0:02:59.7]} 6. Bb3 {[%clk 0:03:06.9]} 6... Bb7 {[%clk 0:03:00]}
7. d3 {[%clk 0:03:07.4]} 7... Be7 {[%clk 0:02:59.4]} 8. Nbd2 {[%clk 0:03:08.1]}
8... O-O {[%clk 0:02:57.8]} 9. Re1 {[%clk 0:03:09.2]} 9... d6 {[%clk 0:02:56.7]}
10. c3 {[%clk 0:03:10.4]} 10... Na5 {[%clk 0:02:38.3]} 11. Bc2 {[%clk 0:03:11]}
11... c5 {[%clk 0:02:38.7]} 12. Nf1 {[%clk 0:03:12.2]} 12... Nc6 {[%clk
0:02:25.9]} 13. Ng3 {[%clk 0:03:04.2]} 13... Re8 {[%clk 0:01:53.5]} 14. d4
{[%clk 0:02:40]} 14... cxd4 {[%clk 0:01:49.8]} 15. cxd4 {[%clk 0:02:41.9]} 15...
Nxd4 {[%clk 0:01:45.5]} 16. Nxd4 {[%clk 0:02:42.9]} 16... exd4 {[%clk
0:01:47.4]} 17. Nf5 {[%clk 0:02:25.1]} 17... Bf8 {[%clk 0:01:00.5]} 18. Qxd4
{[%clk 0:01:42]} 18... Rc8 {[%clk 0:00:51.3]} 19. Bd3 {[%clk 0:01:00.2]} 19...
Nxe4 {[%clk 0:00:24.5]} 20. f3 {[%clk 0:00:37.4]} 20... Nc5 {[%clk 0:00:11.8]}
21. Rxe8 {[%clk 0:00:21.9]} 21... Qxe8 {[%clk 0:00:13.7]} 22. Bf1 {[%clk
0:00:23.8]} 22... Ne6 {[%clk 0:00:06.3]} 23. Qf2 {[%clk 0:00:23.6]} 23... d5
{[%clk 0:00:06.7]} 24. Be3 {[%clk 0:00:25.2]} 24... Qd7 {[%clk 0:00:04.3]} 25.
Rd1 {[%clk 0:00:25]} 25... Re8 {[%clk 0:00:02.7]} 26. Qg3 {[%clk 0:00:19.5]}
26... Kh8 {[%clk 0:00:02.9]} 27. h4 {[%clk 0:00:14.3]} 27... Qc7 {[%clk
0:00:04]} 28. Qf2 {[%clk 0:00:14.9]} 28... Rc8 {[%clk 0:00:03.7]} 29. Nd4 {[%clk
0:00:14.2]} 29... Nxd4 {[%clk 0:00:04]} 30. Bxd4 {[%clk 0:00:16]} 30... Bc5
{[%clk 0:00:04.7]} 31. Re1 {[%clk 0:00:16.1]} 31... Bxd4 {[%clk 0:00:04.3]} 32.
Qxd4 {[%clk 0:00:18]} 32... Kg8 {[%clk 0:00:05.7]} 33. Bd3 {[%clk 0:00:14.1]}
33... Qg3 {[%clk 0:00:03.4]} 34. Re7 {[%clk 0:00:09.3]} 34... Ba8 {[%clk
0:00:02.4]} 35. Qc5 {[%clk 0:00:06.5]} 35... Rf8 {[%clk 0:00:03.1]} 36. Re2
{[%clk 0:00:06.1]} 36... Qxh4 {[%clk 0:00:04.2]} 37. Qd6 {[%clk 0:00:06.2]}
37... Qf6 {[%clk 0:00:05.2]} 38. Bxh7+ {[%clk 0:00:05.2]} 38... Kxh7 {[%clk
0:00:06.1]} 39. Qxf8 {[%clk 0:00:06.9]} 39... Qd4+ {[%clk 0:00:03.8]} 40. Kf1
{[%clk 0:00:07.8]} 40... Qd1+ {[%clk 0:00:03.5]} 41. Kf2 {[%clk 0:00:09.1]}
41... Qd4+ {[%clk 0:00:04.9]} 42. Kg3 {[%clk 0:00:07.5]} 42... Qd3 {[%clk
0:00:03.1]} 43. Qe7 {[%clk 0:00:06.9]} 43... Qg6+ {[%clk 0:00:02.4]} 44. Kf2
{[%clk 0:00:07.7]} 1-0

[Event "*** Titled Tuesday Blitz"]
[Site "Chess.com"]
[Date "2019.05.07"]
[Round "7"]
[White "Shant_Sargsyan"]
[Black "GrigorGrigorov"]
[Result "1-0"]
[WhiteElo "2966"]
[BlackElo "2828"]
[TimeControl "180+2"]
[EndTime "14:41:37 PDT"]
[Termination "Shant_Sargsyan won by resignation"]

1. d4 {[%clk 0:03:01.9]} 1... Nf6 {[%clk 0:03:00.5]} 2. c4 {[%clk 0:03:02.8]}
2... e6 {[%clk 0:03:01.6]} 3. Nf3 {[%clk 0:03:04.3]} 3... b6 {[%clk 0:03:02.4]}
4. g3 {[%clk 0:03:05.6]} 4... Bb7 {[%clk 0:03:03.6]} 5. Bg2 {[%clk 0:03:06.8]}
5... Be7 {[%clk 0:03:05]} 6. O-O {[%clk 0:03:08.2]} 6... O-O {[%clk 0:03:06.1]}
7. Re1 {[%clk 0:03:10]} 7... Ne4 {[%clk 0:03:07]} 8. d5 {[%clk 0:03:03.1]} 8...
exd5 {[%clk 0:03:06.6]} 9. cxd5 {[%clk 0:03:02.5]} 9... Re8 {[%clk 0:03:05.8]}
10. Nc3 {[%clk 0:02:55]} 10... Nxc3 {[%clk 0:03:03.5]} 11. bxc3 {[%clk
0:02:56.9]} 11... Bf6 {[%clk 0:03:05]} 12. Qd3 {[%clk 0:02:56.8]} 12... Na6
{[%clk 0:03:04.2]} 13. e4 {[%clk 0:02:55]} 13... Nc5 {[%clk 0:03:04]} 14. Qc2
{[%clk 0:02:56.3]} 14... d6 {[%clk 0:02:59.1]} 15. Ba3 {[%clk 0:02:50.7]} 15...
Qd7 {[%clk 0:02:46.1]} 16. Bxc5 {[%clk 0:02:44.1]} 16... bxc5 {[%clk 0:02:48]}
17. Rab1 {[%clk 0:02:45.4]} 17... Rab8 {[%clk 0:02:38]} 18. Bf1 {[%clk
0:02:41.9]} 18... c6 {[%clk 0:02:23.6]} 19. Qa4 {[%clk 0:02:39.9]} 19... Qc8
{[%clk 0:02:24.5]} 20. Qxa7 {[%clk 0:01:48.2]} 20... Bxc3 {[%clk 0:02:05.4]} 21.
Rec1 {[%clk 0:01:49.5]} 21... cxd5 {[%clk 0:01:27.3]} 22. Rxc3 {[%clk 0:01:45]}
22... dxe4 {[%clk 0:01:27.5]} 23. Rcb3 {[%clk 0:01:38.4]} 23... Ra8 {[%clk
0:00:47.6]} 24. Qxb7 {[%clk 0:01:38.5]} 24... Qf5 {[%clk 0:00:43]} 25. Nh4
{[%clk 0:01:36.8]} 25... Qf6 {[%clk 0:00:44.2]} 26. a3 {[%clk 0:01:17.4]} 26...
g6 {[%clk 0:00:41.3]} 27. Qd5 {[%clk 0:01:16.5]} 27... Rad8 {[%clk 0:00:34.1]}
28. Rb7 {[%clk 0:00:55.2]} 28... Re5 {[%clk 0:00:35.1]} 29. Qc6 {[%clk
0:00:56.5]} 29... e3 {[%clk 0:00:23.4]} 30. Qf3 {[%clk 0:00:42.8]} 30... Qe6
{[%clk 0:00:20.9]} 31. fxe3 {[%clk 0:00:39.7]} 31... Rxe3 {[%clk 0:00:22]} 32.
Qf2 {[%clk 0:00:41.2]} 32... d5 {[%clk 0:00:21.6]} 33. Ng2 {[%clk 0:00:42.2]}
33... Re5 {[%clk 0:00:19.4]} 34. Nf4 {[%clk 0:00:43.5]} 34... Qd6 {[%clk
0:00:19.8]} 35. R1b6 {[%clk 0:00:44.6]} 35... Qf8 {[%clk 0:00:19.8]} 36. Nd3
{[%clk 0:00:44.9]} 36... Rf5 {[%clk 0:00:20.3]} 37. Qxc5 {[%clk 0:00:45.4]}
37... Qe8 {[%clk 0:00:20.4]} 38. Rb1 {[%clk 0:00:35.1]} 38... d4 {[%clk
0:00:21.5]} 39. Qc1 {[%clk 0:00:31.2]} 39... Rc8 {[%clk 0:00:22.8]} 40. Qd2
{[%clk 0:00:31.5]} 40... Rf3 {[%clk 0:00:21.7]} 41. Bh3 {[%clk 0:00:28.3]} 41...
Rd8 {[%clk 0:00:19.4]} 42. Bg2 {[%clk 0:00:28.3]} 42... Re3 {[%clk 0:00:20.4]}
43. Nf4 {[%clk 0:00:24.6]} 43... d3 {[%clk 0:00:19.8]} 44. Nd5 {[%clk
0:00:21.6]} 44... Re2 {[%clk 0:00:19.3]} 45. Qxd3 {[%clk 0:00:22.5]} 45... Qe5
{[%clk 0:00:16.3]} 46. Rf1 {[%clk 0:00:16.1]} 46... Rxg2+ {[%clk 0:00:13.9]} 47.
Kxg2 {[%clk 0:00:16.8]} 47... Rxd5 {[%clk 0:00:15.8]} 48. Qf3 {[%clk 0:00:17.3]}
48... Rd2+ {[%clk 0:00:16.5]} 49. Rf2 {[%clk 0:00:18.9]} 1-0

[Event "*** Titled Tuesday Blitz"]
[Site "Chess.com"]
[Date "2019.05.07"]
[Round "7"]
[White "ilm2034"]
[Black "ruvat"]
[Result "0-1"]
[WhiteElo "2393"]
[BlackElo "2356"]
[TimeControl "180+2"]
[EndTime "14:41:37 PDT"]
[Termination "ruvat won by checkmate"]

1. d4 {[%clk 0:02:43.3]} 1... d6 {[%clk 0:03:00.6]} 2. c4 {[%clk 0:02:44.2]}
2... e5 {[%clk 0:03:00.7]} 3. d5 {[%clk 0:02:45.7]} 3... Be7 {[%clk 0:02:59.8]}
4. Nc3 {[%clk 0:02:46.9]} 4... a5 {[%clk 0:02:59.8]} 5. Nf3 {[%clk 0:02:45]}
5... Na6 {[%clk 0:03:00.3]} 6. g3 {[%clk 0:02:44]} 6... f5 {[%clk 0:03:00.6]} 7.
Bg2 {[%clk 0:02:45.4]} 7... Nf6 {[%clk 0:02:56.5]} 8. O-O {[%clk 0:02:45.8]}
8... O-O {[%clk 0:02:55.7]} 9. e4 {[%clk 0:02:44.6]} 9... Nc5 {[%clk 0:02:36]}
10. exf5 {[%clk 0:02:39.3]} 10... Bxf5 {[%clk 0:02:37.3]} 11. b3 {[%clk
0:02:39]} 11... Qd7 {[%clk 0:02:24.3]} 12. Be3 {[%clk 0:02:39.5]} 12... b6
{[%clk 0:02:01.2]} 13. Re1 {[%clk 0:02:30.4]} 13... Bg4 {[%clk 0:01:53.2]} 14.
Qc2 {[%clk 0:02:00.3]} 14... Nxd5 {[%clk 0:01:29.8]} 15. Nxd5 {[%clk 0:01:55.6]}
15... Bxf3 {[%clk 0:01:27.4]} 16. Bxf3 {[%clk 0:01:54.6]} 16... Rxf3 {[%clk
0:01:27.9]} 17. Kg2 {[%clk 0:01:43]} 17... Raf8 {[%clk 0:01:24]} 18. a3 {[%clk
0:01:39]} 18... Bd8 {[%clk 0:00:42.7]} 19. b4 {[%clk 0:01:39.4]} 19... Ne6
{[%clk 0:00:38.8]} 20. b5 {[%clk 0:01:34.2]} 20... Qf7 {[%clk 0:00:32.2]} 21.
Rad1 {[%clk 0:01:33.6]} 21... h6 {[%clk 0:00:31.2]} 22. Re2 {[%clk 0:01:28.1]}
22... Bg5 {[%clk 0:00:31]} 23. Rdd2 {[%clk 0:01:24.9]} 23... Bxe3 {[%clk
0:00:30.9]} 24. Rxe3 {[%clk 0:01:26.2]} 24... Nd4 {[%clk 0:00:28.7]} 25. Qe4
{[%clk 0:01:24]} 25... Rxf2+ {[%clk 0:00:27.3]} 26. Rxf2 {[%clk 0:01:23.2]}
26... Qxf2+ {[%clk 0:00:28.1]} 27. Kh3 {[%clk 0:01:24.6]} 27... Qf1+ {[%clk
0:00:25.9]} 28. Qg2 {[%clk 0:01:14.4]} 28... Qf5+ {[%clk 0:00:23]} 29. g4 {[%clk
0:01:15.4]} 29... Qg5 {[%clk 0:00:21]} 30. Qg3 {[%clk 0:01:00.6]} 30... Ne6
{[%clk 0:00:20.4]} 31. Rf3 {[%clk 0:00:58.3]} 31... Nf4+ {[%clk 0:00:20.9]} 32.
Nxf4 {[%clk 0:00:57.5]} 32... Rxf4 {[%clk 0:00:20.8]} 33. Rxf4 {[%clk
0:00:54.8]} 33... Qxf4 {[%clk 0:00:21.7]} 34. Qd3 {[%clk 0:00:55]} 34... Kh8
{[%clk 0:00:19.2]} 35. Qg6 {[%clk 0:00:40.8]} 35... Qf3+ {[%clk 0:00:17]} 36.
Kh4 {[%clk 0:00:42]} 36... Qf6+ {[%clk 0:00:17.7]} 37. Qxf6 {[%clk 0:00:36.7]}
37... gxf6 {[%clk 0:00:19.6]} 38. Kg3 {[%clk 0:00:38.3]} 38... Kg7 {[%clk
0:00:20.5]} 39. Kf3 {[%clk 0:00:34.3]} 39... Kg6 {[%clk 0:00:21.3]} 40. h4
{[%clk 0:00:35.6]} 40... f5 {[%clk 0:00:21.5]} 41. gxf5+ {[%clk 0:00:32.8]}
41... Kxf5 {[%clk 0:00:22.6]} 42. Ke3 {[%clk 0:00:34.7]} 42... e4 {[%clk
0:00:21.3]} 43. Kd4 {[%clk 0:00:35.6]} 43... Kf4 {[%clk 0:00:22.4]} 44. Kd5
{[%clk 0:00:36.6]} 44... e3 {[%clk 0:00:23.7]} 45. Kc6 {[%clk 0:00:38.4]} 45...
e2 {[%clk 0:00:25]} 46. Kxc7 {[%clk 0:00:40.3]} 46... e1=Q {[%clk 0:00:25.8]}
47. Kxb6 {[%clk 0:00:42.2]} 47... Qc3 {[%clk 0:00:24.1]} 48. Ka7 {[%clk
0:00:41.9]} 48... Qxc4 {[%clk 0:00:24.5]} 49. b6 {[%clk 0:00:43.8]} 49... Qc5
{[%clk 0:00:24.7]} 50. Ka6 {[%clk 0:00:44.6]} 50... d5 {[%clk 0:00:23.5]} 51. b7
{[%clk 0:00:45.7]} 51... Qc7 {[%clk 0:00:23.2]} 52. Ka7 {[%clk 0:00:46.2]} 52...
d4 {[%clk 0:00:23.9]} 53. Ka8 {[%clk 0:00:47.4]} 53... d3 {[%clk 0:00:24.6]} 54.
a4 {[%clk 0:00:48.7]} 54... d2 {[%clk 0:00:24.9]} 55. Ka7 {[%clk 0:00:50.6]}
55... d1=Q {[%clk 0:00:24.6]} 56. Ka8 {[%clk 0:00:52.4]} 56... Qdd8+ {[%clk
0:00:24.7]} 57. Ka7 {[%clk 0:00:53.3]} 57... Qb6# {[%clk 0:00:25.4]} 0-1

[Event "*** Titled Tuesday Blitz"]
[Site "Chess.com"]
[Date "2019.05.07"]
[Round "7"]
[White "Fins0905"]
[Black "NeverEverForever1990"]
[Result "1-0"]
[WhiteElo "2672"]
[BlackElo "2437"]
[TimeControl "180+2"]
[EndTime "14:41:40 PDT"]
[Termination "Fins0905 won by checkmate"]

1. d4 {[%clk 0:03:01.9]} 1... Nf6 {[%clk 0:02:59.2]} 2. c4 {[%clk 0:03:02.7]}
2... c6 {[%clk 0:02:59.5]} 3. Bf4 {[%clk 0:02:59.4]} 3... g6 {[%clk 0:02:58.6]}
4. Nc3 {[%clk 0:02:59.9]} 4... Bg7 {[%clk 0:02:59.9]} 5. e3 {[%clk 0:03:00.2]}
5... O-O {[%clk 0:03:00.8]} 6. Be2 {[%clk 0:02:59.7]} 6... d5 {[%clk 0:02:51.5]}
7. Nf3 {[%clk 0:02:55.8]} 7... Bg4 {[%clk 0:02:50.7]} 8. cxd5 {[%clk 0:02:43.6]}
8... Nxd5 {[%clk 0:02:37.3]} 9. Bg3 {[%clk 0:02:33.6]} 9... Nd7 {[%clk
0:02:28.2]} 10. O-O {[%clk 0:02:25.9]} 10... N7f6 {[%clk 0:02:26.6]} 11. h3
{[%clk 0:02:14.5]} 11... Bf5 {[%clk 0:02:24]} 12. Bh2 {[%clk 0:02:01.8]} 12...
Ne4 {[%clk 0:02:16]} 13. Nxe4 {[%clk 0:01:56.4]} 13... Bxe4 {[%clk 0:02:17.9]}
14. Nd2 {[%clk 0:01:55.9]} 14... Nf6 {[%clk 0:02:19.2]} 15. Nxe4 {[%clk
0:01:49.8]} 15... Nxe4 {[%clk 0:02:21.1]} 16. Qc2 {[%clk 0:01:50.4]} 16... Nf6
{[%clk 0:02:21.4]} 17. b4 {[%clk 0:01:47.5]} 17... a6 {[%clk 0:02:18.6]} 18. a4
{[%clk 0:01:46.5]} 18... Qd7 {[%clk 0:02:12.9]} 19. b5 {[%clk 0:01:33.1]} 19...
axb5 {[%clk 0:02:12.6]} 20. axb5 {[%clk 0:01:33.9]} 20... Rxa1 {[%clk
0:02:13.5]} 21. Rxa1 {[%clk 0:01:35.1]} 21... Nd5 {[%clk 0:02:11.5]} 22. bxc6
{[%clk 0:01:29.1]} 22... Qxc6 {[%clk 0:02:12.3]} 23. Qxc6 {[%clk 0:01:28]} 23...
bxc6 {[%clk 0:02:14.2]} 24. Rc1 {[%clk 0:01:26.7]} 24... Nb4 {[%clk 0:02:14.9]}
25. Rc4 {[%clk 0:01:24.8]} 25... Nd5 {[%clk 0:01:54.3]} 26. Rxc6 {[%clk
0:01:22.6]} 26... Ra8 {[%clk 0:01:55.8]} 27. Rc1 {[%clk 0:01:14.5]} 27... e6
{[%clk 0:01:50.7]} 28. Bf3 {[%clk 0:01:13.3]} 28... Bf8 {[%clk 0:01:44.3]} 29.
Bxd5 {[%clk 0:01:04.6]} 29... exd5 {[%clk 0:01:45.3]} 30. Bf4 {[%clk 0:00:54.3]}
30... f5 {[%clk 0:01:41]} 31. Rc7 {[%clk 0:00:51]} 31... Rd8 {[%clk 0:01:39.9]}
32. Be5 {[%clk 0:00:45.5]} 32... Bd6 {[%clk 0:01:36.7]} 33. Rg7+ {[%clk
0:00:45.1]} 33... Kf8 {[%clk 0:01:30.9]} 34. Rxh7 {[%clk 0:00:32.5]} 34... Bxe5
{[%clk 0:01:30.8]} 35. dxe5 {[%clk 0:00:34.4]} 35... Kg8 {[%clk 0:01:32.1]} 36.
Re7 {[%clk 0:00:32.2]} 36... d4 {[%clk 0:01:33.2]} 37. exd4 {[%clk 0:00:30]}
37... Rxd4 {[%clk 0:01:35.1]} 38. g3 {[%clk 0:00:28.3]} 38... Re4 {[%clk
0:01:29.2]} 39. f4 {[%clk 0:00:25.1]} 39... Re2 {[%clk 0:01:27.5]} 40. Rd7
{[%clk 0:00:20.5]} 40... Kf8 {[%clk 0:01:26.3]} 41. Rd3 {[%clk 0:00:13.6]} 41...
Kf7 {[%clk 0:01:26.2]} 42. Rf3 {[%clk 0:00:14.4]} 42... Ke6 {[%clk 0:01:23.9]}
43. Rf2 {[%clk 0:00:13.3]} 43... Re3 {[%clk 0:01:22.7]} 44. Kg2 {[%clk
0:00:14.1]} 44... Rb3 {[%clk 0:01:24.3]} 45. h4 {[%clk 0:00:08.4]} 45... Rb1
{[%clk 0:01:21.5]} 46. Rd2 {[%clk 0:00:08.5]} 46... Rb3 {[%clk 0:01:19]} 47.
Rd6+ {[%clk 0:00:09.1]} 47... Kf7 {[%clk 0:01:20.7]} 48. Rf6+ {[%clk 0:00:10.2]}
48... Kg7 {[%clk 0:01:21.9]} 49. h5 {[%clk 0:00:11.7]} 49... gxh5 {[%clk
0:01:20.1]} 50. Rxf5 {[%clk 0:00:12.6]} 50... Kg6 {[%clk 0:01:21.7]} 51. Rg5+
{[%clk 0:00:13.7]} 51... Kh6 {[%clk 0:01:22.9]} 52. e6 {[%clk 0:00:09.9]} 52...
Rb2+ {[%clk 0:01:20.5]} 53. Kh3 {[%clk 0:00:09.6]} 53... Re2 {[%clk 0:01:17.8]}
54. Re5 {[%clk 0:00:10.2]} 54... Rf2 {[%clk 0:01:18.8]} 55. e7 {[%clk
0:00:10.6]} 55... h4 {[%clk 0:01:10.2]} 56. e8=Q {[%clk 0:00:08.2]} 56... hxg3
{[%clk 0:01:07.3]} 57. Qc6+ {[%clk 0:00:05.9]} 57... Kg7 {[%clk 0:01:06.3]} 58.
Re7+ {[%clk 0:00:07.3]} 58... Kf8 {[%clk 0:01:08.2]} 59. Qe8# {[%clk 0:00:08.8]}
1-0